fUST/lending_fUST_20240421
["ID","MTS","AMOUNT","RATE_DAILY","PERIOD"]
[323119869,1713682253705,-500.0,0.00022739,2]
[323119870,1713682253715,-500.0,0.00022739,2]
[323119871,1713682253724,-1129.46,0.00022739,2]
[323119872,1713682253733,-2335.39,0.00022739,2]
[323119873,1713682253745,-500.0,0.00022739,2]
[323119874,1713682253755,-500.0,0.00022739,2]
[323119875,1713682253765,-500.0,0.00022739,2]
[323119876,1713682253775,-500.0,0.00022739,2]
[323119877,1713682253783,-500.0,0.00022739,2]
[323119878,1713682253793,-808.13,0.00022739,2]
[323119879,1713682253802,-500.0,0.00022739,2]
[323119880,1713682253811,-847.92,0.00022739,2]
[323119881,1713682253820,-500.0,0.00022739,2]
[323119882,1713682253829,-525.39005817,0.00022739,2]
[323119883,1713682253838,-2528.35,0.00022739,2]
[323119884,1713682253847,-233.84639891,0.00022739,2]
[323119885,1713682253857,-255.86394292,0.00022739,2]
[323119886,1713682253867,-184.020604,0.00022739,2]
[323119887,1713682253876,-1137.12,0.00022739,2]
[323119888,1713682253886,-184.020604,0.00022739,2]
[323119889,1713682253895,-500.0,0.00022739,2]
[323119890,1713682253963,-184.020604,0.00022739,2]
[323119891,1713682253972,-500.0,0.00022739,2]
[323119892,1713682253981,-184.020608,0.00022739,2]
[323119893,1713682253992,-500.0,0.00022739,2]
[323119894,1713682254001,-414.250954,0.00022739,2]
[323119895,1713682254010,-500.0,0.00022739,2]
[323119896,1713682254019,-414.250962,0.00022739,2]
[323119897,1713682254028,-1992.64,0.00022739,2]
[323119898,1713682254038,-1173.14,0.00022739,2]
[323119899,1713682254047,-301.35554364,0.00022739,2]
[323119900,1713682254056,-579.79565403,0.00022739,2]
[323119901,1713682254065,-500.0,0.00022739,2]
[323119902,1713682254075,-5785.47,0.00022739,2]
[323119903,1713682254084,-500.0,0.00022739,2]
[323119904,1713682254094,-1195.65,0.00022739,2]
[323119905,1713682254104,-500.0,0.00022739,2]
[323119906,1713682254114,-500.0,0.00022739,2]
[323119907,1713682254123,-1082.6,0.00022739,2]
[323119908,1713682254133,-500.0,0.00022739,2]
[323119909,1713682254142,-865.36,0.00022739,2]
[323119910,1713682254151,-585.82,0.00022739,2]
[323119911,1713682254160,-513.23,0.00022739,2]
[323119912,1713682254169,-411.60022479,0.00022739,2]
[323119913,1713682254178,-920.24,0.00022739,2]
[323119914,1713682254188,-500.0,0.00022739,2]
[323119915,1713682254197,-166.722068,0.00022739,2]
[323119916,1713682254207,-500.0,0.00022739,2]
[323119917,1713682254216,-500.0,0.00022739,2]
[323119918,1713682254225,-509.53826186,0.00022739,2]
[323119919,1713682254235,-500.0,0.00022739,2]
[323119920,1713682254246,-166.72207,0.00022739,2]
[323119921,1713682254256,-626.07,0.00022739,2]
[323119922,1713682254265,-500.0,0.00022739,2]
[323119923,1713682254274,-500.0,0.00022739,2]
[323119924,1713682254285,-829.79,0.00022739,2]
[323119925,1713682254294,-500.0,0.00022739,2]
[323119926,1713682254304,-685.85,0.00022739,2]
[323119927,1713682254315,-3764.97,0.00022739,2]
[323119928,1713682254324,-924.74,0.00022739,2]
[323119929,1713682254334,-500.0,0.00022739,2]
[323119930,1713682254344,-500.0,0.00022739,2]
[323119931,1713682254353,-500.0,0.00022739,2]
[323119932,1713682254362,-500.0,0.00022739,2]
[323119933,1713682254371,-203.09213189,0.00022739,2]
[323119934,1713682254382,-3553.7,0.00022739,2]
[323119935,1713682254391,-500.0,0.00022739,2]
[323119936,1713682254401,-532.05434989,0.00022739,2]
[323119937,1713682254410,-500.0,0.00022739,2]
[323119938,1713682254420,-519.95473425,0.00022739,2]
[323119939,1713682254429,-269.2981657,0.00022739,2]
[323119940,1713682254438,-500.0,0.00022739,2]
[323119941,1713682254448,-3076.51,0.00022739,2]
[323119942,1713682254457,-2283.51,0.00022739,2]
[323119943,1713682254467,-500.0,0.00022739,2]
[323119944,1713682254476,-500.0,0.00022739,2]
[323119945,1713682254486,-545.24,0.00022739,2]
[323119946,1713682254497,-500.0,0.00022739,2]
[323119947,1713682254507,-500.0,0.00022739,2]
[323119948,1713682254517,-500.0,0.00022739,2]
[323119949,1713682254527,-605.36,0.00022739,2]
[323119950,1713682254537,-500.0,0.00022739,2]
[323119951,1713682254546,-500.0,0.00022739,2]
[323119952,1713682254556,-500.0,0.00022739,2]
[323119953,1713682254565,-500.0,0.00022739,2]
[323119954,1713682254575,-500.0,0.00022739,2]
[323119955,1713682254584,-2074.47,0.00022739,2]
[323119956,1713682254594,-55793.57,0.00022739,2]
[323119957,1713682254604,-500.0,0.00022739,2]
[323119958,1713682254613,-571.08,0.00022739,2]
[323119959,1713682254623,-641.6,0.00022739,2]
[323119960,1713682254632,-500.0,0.00022739,2]
[323119961,1713682254642,-500.0,0.00022739,2]
[323119962,1713682254651,-415.28958894,0.00022739,2]
[323119963,1713682254661,-2161.83,0.00022739,2]
[323119964,1713682254670,-500.0,0.00022739,2]
[323119965,1713682254680,-500.0,0.00022739,2]
[323119966,1713682254689,-542.23,0.00022739,2]
[323119967,1713682254699,-3661.29,0.00022739,2]
[323119968,1713682254708,-500.0,0.00022739,2]
[323119969,1713682254718,-501.0735086,0.00022739,2]
[323119970,1713682254727,-500.0,0.00022739,2]
[323119971,1713682254737,-500.0,0.00022739,2]
[323119972,1713682254748,-650.2,0.00022739,2]
[323119973,1713682254758,-457.07644011,0.00022739,2]
[323119974,1713682254767,-4628.55,0.00022739,2]
[323119975,1713682254776,-500.0,0.00022739,2]
[323119976,1713682254786,-395.85056397,0.00022739,2]
[323119977,1713682254795,-500.0,0.00022739,2]
[323119978,1713682254805,-1011.96,0.00022739,2]
[323119979,1713682254815,-8470.02,0.00022739,2]
[323119980,1713682254824,-151.0,0.00022739,2]
[323119981,1713682254834,-500.0,0.00022739,2]
[323119982,1713682254843,-500.0,0.00022739,2]
[323119983,1713682254854,-6566.31,0.00022739,2]
[323119984,1713682254863,-500.0,0.00022739,2]
[323119985,1713682254873,-1558.88,0.00022739,2]
[323119986,1713682254882,-1397.36,0.00022739,2]
[323119987,1713682254891,-500.0,0.00022739,2]
[323119988,1713682254900,-500.0,0.00022739,2]
[323119989,1713682254910,-500.0,0.00022739,2]
[323119990,1713682254919,-500.0,0.00022739,2]
[323119991,1713682254929,-500.0,0.00022739,2]
[323119992,1713682254938,-554.09,0.00022739,2]
[323119993,1713682254947,-1938.71,0.00022739,2]
[323119994,1713682254956,-500.0,0.00022739,2]
[323119995,1713682255022,-1000.0,0.000228,3]
[323119996,1713682255031,-160.0,0.00022976,3]
[323119997,1713682255041,-216.76021213,0.00023,2]
[323119998,1713682255050,-500.0,0.00023,2]
[323119999,1713682255059,-302.0,0.00023,2]
[323120000,1713682255069,-587.0,0.00023,2]
[323120001,1713682255078,-150.0,0.00023,10]
[323120002,1713682255087,-500.0,0.00023013,2]
[323120003,1713682255097,-500.0,0.00023013,2]
[323120004,1713682255106,-500.0,0.00023013,2]
[323120005,1713682255116,-500.0,0.00023013,2]
[323120006,1713682255125,-500.0,0.00023013,2]
[323120007,1713682255134,-434.8,0.00023013,2]
[323120008,1713682255143,-500.0,0.00023013,2]
[323120009,1713682255152,-584.00789197,0.00023013,2]
[323120010,1713682255162,-895.86,0.00023013,2]
[323120011,1713682255171,-506.52181943,0.00023013,2]
[323120012,1713682255180,-160.5280125,0.00023013,2]
[323120013,1713682255190,-500.0,0.00023013,2]
[323120014,1713682255199,-500.0,0.00023013,2]
[323120015,1713682255209,-500.0,0.00023013,2]
[323120016,1713682255218,-539.54,0.00023013,2]
[323120017,1713682255227,-500.0,0.00023013,2]
[323120018,1713682255237,-500.0,0.00023013,2]
[323120019,1713682255247,-500.0,0.00023013,2]
[323120020,1713682255257,-500.0,0.00023013,2]
[323120021,1713682255267,-2897.85,0.00023013,2]
[323120022,1713682255276,-500.0,0.00023013,2]
[323120023,1713682255286,-500.0,0.00023013,2]
[323120024,1713682255296,-668.25,0.00023013,2]
[323120025,1713682255305,-500.0,0.00023013,2]
[323120026,1713682255315,-500.0,0.00023013,2]
[323120027,1713682255324,-500.0,0.00023013,2]
[323120028,1713682255334,-593.98005266,0.00023013,2]
[323120029,1713682255343,-926.17,0.00023013,2]
[323120030,1713682255352,-500.0,0.00023013,2]
[323120031,1713682255362,-600.82,0.00023013,2]
[323120032,1713682255371,-1032.11,0.00023013,2]
[323120033,1713682255380,-500.0,0.00023013,2]
[323120034,1713682255389,-500.0,0.00023013,2]
[323120035,1713682255397,-500.0,0.00023013,2]
[323120036,1713682255407,-1200.37,0.00023013,2]
[323120037,1713682255416,-751.54,0.00023013,2]
[323120038,1713682255425,-500.0,0.00023013,2]
[323120039,1713682255434,-500.0,0.00023013,2]
[323120040,1713682255443,-500.0,0.00023013,2]
[323120041,1713682255452,-500.0,0.00023013,2]
[323120042,1713682255461,-500.0,0.00023013,2]
[323120043,1713682255471,-823.34,0.00023013,2]
[323120044,1713682255480,-500.0,0.00023013,2]
[323120045,1713682255490,-500.0,0.00023013,2]
[323120046,1713682255498,-500.0,0.00023013,2]
[323120047,1713682255507,-500.0,0.00023013,2]
[323120048,1713682255516,-1463.78,0.00023013,2]
[323120049,1713682255525,-980.47,0.00023013,2]
[323120050,1713682255534,-1041.63,0.00023013,2]
[323120051,1713682255543,-500.0,0.00023013,2]
[323120052,1713682255552,-1235.19,0.00023013,2]
[323120053,1713682255562,-550.81,0.00023013,2]
[323120054,1713682255571,-1709.09,0.00023013,2]
[323120055,1713682255581,-505.72068114,0.00023013,2]
[323120056,1713682255590,-500.0,0.00023013,2]
[323120057,1713682255599,-2893.04,0.00023013,2]
[323120058,1713682255608,-500.0,0.00023013,2]
[323120059,1713682255617,-508.45515038,0.00023013,2]
[323120060,1713682255627,-2003.26,0.00023013,2]
[323120061,1713682255636,-500.0,0.00023013,2]
[323120062,1713682255645,-500.0,0.00023013,2]
[323120063,1713682255654,-1858.5,0.00023013,2]
[323120064,1713682255663,-859.85,0.00023013,2]
[323120065,1713682255672,-504.47375358,0.00023013,2]
[323120066,1713682255681,-500.0,0.00023013,2]
[323120067,1713682255691,-1129.46,0.00023013,2]
[323120068,1713682255700,-2335.39,0.00023013,2]
[323120069,1713682255710,-500.0,0.00023013,2]
[323120070,1713682255719,-500.0,0.00023013,2]
[323120071,1713682255728,-500.0,0.00023013,2]
[323120072,1713682255738,-808.13,0.00023013,2]
[323120073,1713682255748,-500.0,0.00023013,2]
[323120074,1713682255757,-847.92,0.00023013,2]
[323120075,1713682255766,-500.0,0.00023013,2]
[323120076,1713682255776,-2528.35,0.00023013,2]
[323120077,1713682255785,-1137.12,0.00023013,2]
[323120078,1713682255795,-500.0,0.00023013,2]
[323120079,1713682255804,-500.0,0.00023013,2]
[323120080,1713682255814,-500.0,0.00023013,2]
[323120081,1713682255823,-500.0,0.00023013,2]
[323120082,1713682255832,-1173.14,0.00023013,2]
[323120083,1713682255842,-1992.64,0.00023013,2]
[323120084,1713682255851,-500.0,0.00023013,2]
[323120085,1713682255860,-5785.47,0.00023013,2]
[323120086,1713682255869,-500.0,0.00023013,2]
[323120087,1713682255879,-1195.65,0.00023013,2]
[323120088,1713682255888,-500.0,0.00023013,2]
[323120089,1713682255897,-500.0,0.00023013,2]
[323120090,1713682255906,-1082.6,0.00023013,2]
[323120091,1713682255915,-500.0,0.00023013,2]
[323120092,1713682255977,-865.36,0.00023013,2]
[323120093,1713682255986,-585.82,0.00023013,2]
[323120094,1713682255997,-513.23,0.00023013,2]
[323120095,1713682256006,-920.24,0.00023013,2]
[323120096,1713682256015,-500.0,0.00023013,2]
[323120097,1713682256024,-500.0,0.00023013,2]
[323120098,1713682256032,-500.0,0.00023013,2]
[323120099,1713682256041,-500.0,0.00023013,2]
[323120100,1713682256050,-626.07,0.00023013,2]
[323120101,1713682256059,-500.0,0.00023013,2]
[323120102,1713682256069,-500.0,0.00023013,2]
[323120103,1713682256078,-829.79,0.00023013,2]
[323120104,1713682256087,-500.0,0.00023013,2]
[323120105,1713682256096,-685.85,0.00023013,2]
[323120106,1713682256106,-3764.97,0.00023013,2]
[323120107,1713682256115,-924.74,0.00023013,2]
[323120108,1713682256124,-500.0,0.00023013,2]
[323120109,1713682256133,-510.25554384,0.00023013,2]
[323120110,1713682256142,-500.0,0.00023013,2]
[323120111,1713682256151,-500.0,0.00023013,2]
[323120112,1713682256160,-3553.7,0.00023013,2]
[323120113,1713682256169,-500.0,0.00023013,2]
[323120114,1713682256179,-500.0,0.00023013,2]
[323120115,1713682256188,-500.0,0.00023013,2]
[323120116,1713682256197,-3076.51,0.00023013,2]
[323120117,1713682256206,-2283.51,0.00023013,2]
[323120118,1713682256215,-500.0,0.00023013,2]
[323120119,1713682256224,-266.35727334,0.00023013,2]
[323120120,1713682256233,-545.24,0.00023013,2]
[323120121,1713682256244,-500.0,0.00023013,2]
[323120122,1713682256253,-500.0,0.00023013,2]
[323120123,1713682256262,-601.63560334,0.00023013,2]
[323120124,1713682256271,-605.36,0.00023013,2]
[323120125,1713682256281,-500.0,0.00023013,2]
[323120126,1713682256290,-500.0,0.00023013,2]
[323120127,1713682256299,-500.0,0.00023013,2]
[323120128,1713682256308,-500.0,0.00023013,2]
[323120129,1713682256317,-500.0,0.00023013,2]
[323120130,1713682256326,-2074.47,0.00023013,2]
[323120131,1713682256336,-55793.57,0.00023013,2]
[323120132,1713682256345,-500.0,0.00023013,2]
[323120133,1713682256354,-571.08,0.00023013,2]
[323120134,1713682256363,-641.6,0.00023013,2]
[323120135,1713682256371,-500.0,0.00023013,2]
[323120136,1713682256380,-500.0,0.00023013,2]
[323120137,1713682256390,-2161.83,0.00023013,2]
[323120138,1713682256406,-500.0,0.00023013,2]
[323120139,1713682256423,-500.0,0.00023013,2]
[323120140,1713682256440,-542.23,0.00023013,2]
[323120141,1713682256458,-3661.29,0.00023013,2]
[323120142,1713682256473,-500.0,0.00023013,2]
[323120143,1713682256490,-500.0,0.00023013,2]
[323120144,1713682256507,-500.0,0.00023013,2]
[323120145,1713682256524,-650.2,0.00023013,2]
[323120146,1713682256542,-4628.55,0.00023013,2]
[323120147,1713682256557,-500.0,0.00023013,2]
[323120148,1713682256577,-500.0,0.00023013,2]
[323120149,1713682256595,-1011.96,0.00023013,2]
[323120150,1713682256607,-8470.02,0.00023013,2]
[323120151,1713682256623,-151.0,0.00023013,2]
[323120152,1713682256639,-500.0,0.00023013,2]
[323120153,1713682256653,-500.0,0.00023013,2]
[323120154,1713682256667,-6566.31,0.00023013,2]
[323120155,1713682256681,-500.0,0.00023013,2]
[323120156,1713682256696,-1397.36,0.00023013,2]
[323120157,1713682256711,-1558.88,0.00023013,2]
[323120158,1713682256727,-500.0,0.00023013,2]
[323120159,1713682256741,-500.0,0.00023013,2]
[323120160,1713682256756,-500.0,0.00023013,2]
[323120161,1713682256770,-500.0,0.00023013,2]
[323120162,1713682256784,-500.0,0.00023013,2]
[323120163,1713682256798,-554.09,0.00023013,2]
[323120164,1713682256811,-1938.71,0.00023013,2]
[323120165,1713682256826,-500.0,0.00023013,2]
[323120166,1713682256840,-1000.0,0.000231,2]
[323120167,1713682256855,-1087.10360446,0.00023156,2]
[323120168,1713682256869,-420.0,0.00023176,2]
[323120169,1713682256883,-500.0,0.00023287,2]
[323120170,1713682256897,-500.0,0.00023287,2]
[323120171,1713682256911,-500.0,0.00023287,2]
[323120172,1713682256925,-154.4,0.00023287,2]
[323120173,1713682256940,-500.0,0.00023287,2]
[323120174,1713682256953,-500.0,0.00023287,2]
[323120175,1713682256967,-895.86,0.00023287,2]
[323120176,1713682256981,-500.0,0.00023287,2]
[323120177,1713682256996,-500.0,0.00023287,2]
[323120178,1713682257011,-500.0,0.00023287,2]
[323120179,1713682257025,-539.54,0.00023287,2]
[323120180,1713682257038,-500.0,0.00023287,2]
[323120181,1713682257052,-500.0,0.00023287,2]
[323120182,1713682257139,-500.0,0.00023287,2]
[323120183,1713682257148,-500.0,0.00023287,2]
[323120184,1713682257158,-2897.85,0.00023287,2]
[323120185,1713682257167,-489.9842099,0.00023287,2]
[323120186,1713682257176,-500.0,0.00023287,2]
[323120187,1713682257186,-668.25,0.00023287,2]
[323120188,1713682257195,-514.77445575,0.00023287,2]
[323120189,1713682257205,-515.77253081,0.00023287,2]
[323120190,1713682257214,-500.0,0.00023287,2]
[323120191,1713682257223,-926.17,0.00023287,2]
[323120192,1713682257233,-500.0,0.00023287,2]
[323120193,1713682257246,-600.82,0.00023287,2]
[323120194,1713682257254,-1032.11,0.00023287,2]
[323120195,1713682257264,-590.56174095,0.00023287,2]
[323120196,1713682257273,-500.0,0.00023287,2]
[323120197,1713682257284,-500.0,0.00023287,2]
[323120198,1713682257293,-1200.37,0.00023287,2]
[323120199,1713682257303,-751.54,0.00023287,2]
[323120200,1713682257312,-513.69631269,0.00023287,2]
[323120201,1713682257530,-256.23789385,0.00023287,2]
[323120202,1713682257541,-500.0,0.00023287,2]
[323120203,1713682257551,-500.0,0.00023287,2]
[323120204,1713682257561,-479.8512528,0.00023287,2]
[323120205,1713682257570,-823.34,0.00023287,2]
[323120206,1713682257579,-500.0,0.00023287,2]
[323120207,1713682257589,-500.0,0.00023287,2]
[323120208,1713682257598,-500.0,0.00023287,2]
[323120209,1713682257608,-500.0,0.00023287,2]
[323120210,1713682257617,-1463.78,0.00023287,2]
[323120211,1713682257627,-980.47,0.00023287,2]
[323120212,1713682257636,-1041.63,0.00023287,2]
[323120213,1713682257646,-296.253988,0.00023287,2]
[323120214,1713682257655,-1235.19,0.00023287,2]
[323120215,1713682257664,-550.81,0.00023287,2]
[323120216,1713682257674,-1709.09,0.00023287,2]
[323120217,1713682257683,-500.0,0.00023287,2]
[323120218,1713682257692,-2893.04,0.00023287,2]
[323120219,1713682257701,-500.0,0.00023287,2]
[323120220,1713682257711,-2003.26,0.00023287,2]
[323120221,1713682257719,-500.0,0.00023287,2]
[323120222,1713682257729,-1858.5,0.00023287,2]
[323120223,1713682257738,-859.85,0.00023287,2]
[323120224,1713682257748,-500.0,0.00023287,2]
[323120225,1713682257757,-1129.46,0.00023287,2]
[323120226,1713682257766,-2335.39,0.00023287,2]
[323120227,1713682257776,-500.0,0.00023287,2]
[323120228,1713682257785,-500.0,0.00023287,2]
[323120229,1713682257795,-500.0,0.00023287,2]
[323120230,1713682257805,-808.13,0.00023287,2]
[323120231,1713682257814,-500.0,0.00023287,2]
[323120232,1713682257823,-847.92,0.00023287,2]
[323120233,1713682257832,-500.0,0.00023287,2]
[323120234,1713682257842,-2528.35,0.00023287,2]
[323120235,1713682257851,-1137.12,0.00023287,2]
[323120236,1713682257861,-276.40559288,0.00023287,2]
[323120237,1713682257870,-500.0,0.00023287,2]
[323120238,1713682257880,-500.0,0.00023287,2]
[323120239,1713682257889,-500.0,0.00023287,2]
[323120240,1713682257898,-1173.14,0.00023287,2]
[323120241,1713682257907,-1992.64,0.00023287,2]
[323120242,1713682257917,-500.0,0.00023287,2]
[323120243,1713682257926,-1955.31380701,0.00023287,2]
[323120244,1713682258095,-3830.15619299,0.00023287,2]
[323120245,1713682258162,-500.0,0.00023287,2]
[323120246,1713682258172,-1195.65,0.00023287,2]
[323120247,1713682258181,-500.0,0.00023287,2]
[323120248,1713682258190,-500.0,0.00023287,2]
[323120249,1713682258199,-1082.6,0.00023287,2]
[323120250,1713682258208,-500.0,0.00023287,2]
[323120251,1713682258217,-865.36,0.00023287,2]
[323120252,1713682258227,-585.82,0.00023287,2]
[323120253,1713682258238,-513.23,0.00023287,2]
[323120254,1713682258250,-920.24,0.00023287,2]
[323120255,1713682258260,-500.0,0.00023287,2]
[323120256,1713682258269,-500.0,0.00023287,2]
[323120257,1713682258278,-500.0,0.00023287,2]
[323120258,1713682258288,-500.0,0.00023287,2]
[323120259,1713682258297,-626.07,0.00023287,2]
[323120260,1713682258306,-592.69391137,0.00023287,2]
[323120261,1713682258316,-500.0,0.00023287,2]
[323120262,1713682258325,-829.79,0.00023287,2]
[323120263,1713682258335,-500.0,0.00023287,2]
[323120264,1713682258344,-685.85,0.00023287,2]
[323120265,1713682258354,-3764.97,0.00023287,2]
[323120266,1713682258363,-924.74,0.00023287,2]
[323120267,1713682258372,-500.0,0.00023287,2]
[323120268,1713682258382,-500.0,0.00023287,2]
[323120269,1713682258392,-500.0,0.00023287,2]
[323120270,1713682258402,-3553.7,0.00023287,2]
[323120271,1713682258411,-500.0,0.00023287,2]
[323120272,1713682258421,-504.18612698,0.00023287,2]
[323120273,1713682258431,-500.0,0.00023287,2]
[323120274,1713682258440,-3076.51,0.00023287,2]
[323120275,1713682258449,-2283.51,0.00023287,2]
[323120276,1713682258459,-500.0,0.00023287,2]
[323120277,1713682258469,-545.24,0.00023287,2]
[323120278,1713682258478,-500.0,0.00023287,2]
[323120279,1713682258488,-500.0,0.00023287,2]
[323120280,1713682258498,-605.36,0.00023287,2]
[323120281,1713682258507,-500.0,0.00023287,2]
[323120282,1713682258516,-500.0,0.00023287,2]
[323120283,1713682258526,-500.0,0.00023287,2]
[323120284,1713682258536,-500.0,0.00023287,2]
[323120285,1713682258545,-500.0,0.00023287,2]
[323120286,1713682258554,-2074.47,0.00023287,2]
[323120287,1713682258564,-55793.57,0.00023287,2]
[323120288,1713682258574,-500.0,0.00023287,2]
[323120289,1713682258583,-571.08,0.00023287,2]
[323120290,1713682258592,-641.6,0.00023287,2]
[323120291,1713682258602,-500.0,0.00023287,2]
[323120292,1713682258612,-500.0,0.00023287,2]
[323120293,1713682258621,-2161.83,0.00023287,2]
[323120294,1713682258631,-500.0,0.00023287,2]
[323120295,1713682258640,-500.0,0.00023287,2]
[323120296,1713682258649,-542.23,0.00023287,2]
[323120297,1713682258659,-3661.29,0.00023287,2]
[323120298,1713682258668,-500.0,0.00023287,2]
[323120299,1713682258677,-500.0,0.00023287,2]
[323120300,1713682258687,-517.38937215,0.00023287,2]
[323120301,1713682258697,-650.2,0.00023287,2]
[323120302,1713682258706,-4628.55,0.00023287,2]
[323120303,1713682258716,-500.0,0.00023287,2]
[323120304,1713682258726,-500.0,0.00023287,2]
[323120305,1713682258735,-1011.96,0.00023287,2]
[323120306,1713682258745,-8470.02,0.00023287,2]
[323120307,1713682258754,-151.0,0.00023287,2]
[323120308,1713682258763,-500.0,0.00023287,2]
[323120309,1713682258772,-500.0,0.00023287,2]
[323120310,1713682258783,-6566.31,0.00023287,2]
[323120311,1713682258793,-500.0,0.00023287,2]
[323120312,1713682258802,-1397.36,0.00023287,2]
[323120313,1713682258812,-1558.88,0.00023287,2]
[323120314,1713682258821,-500.0,0.00023287,2]
[323120315,1713682258830,-500.0,0.00023287,2]
[323120316,1713682258840,-500.0,0.00023287,2]
[323120317,1713682258849,-160.98224544,0.00023287,2]
[323120318,1713682258858,-621.64,0.00023287,2]
[323120319,1713682258868,-554.09,0.00023287,2]
[323120320,1713682258878,-1938.71,0.00023287,2]
[323120321,1713682258887,-500.0,0.00023287,2]
[323120322,1713682258896,-153.0,0.0002337,2]
[323120323,1713682258906,-2000.0,0.000234,2]
[323120324,1713682258916,-201.8418639,0.00023425,2]
[323120325,1713682258925,-420.0,0.00023448,2]
[323120326,1713682258935,-160.0,0.0002356,4]
[323120327,1713682258945,-500.0,0.00023561,2]
[323120328,1713682258954,-500.0,0.00023561,2]
[323120329,1713682258964,-500.0,0.00023561,2]
[323120330,1713682258973,-500.0,0.00023561,2]
[323120331,1713682258982,-500.0,0.00023561,2]
[323120332,1713682258993,-895.86,0.00023561,2]
[323120333,1713682259002,-500.0,0.00023561,2]
[323120334,1713682259010,-500.0,0.00023561,2]
[323120335,1713682259020,-500.0,0.00023561,2]
[323120336,1713682259029,-539.54,0.00023561,2]
[323120337,1713682259039,-500.0,0.00023561,2]
[323120338,1713682259048,-500.0,0.00023561,2]
[323120339,1713682259058,-500.0,0.00023561,2]
[323120340,1713682259067,-333.56,0.00023561,2]
[323120341,1713682259077,-2897.85,0.00023561,2]
[323120342,1713682259086,-500.0,0.00023561,2]
[323120343,1713682259095,-668.25,0.00023561,2]
[323120344,1713682259105,-500.0,0.00023561,2]
[323120345,1713682259114,-926.17,0.00023561,2]
[323120346,1713682259124,-500.0,0.00023561,2]
[323120347,1713682259133,-600.82,0.00023561,2]
[323120348,1713682259143,-1032.11,0.00023561,2]
[323120349,1713682259152,-500.0,0.00023561,2]
[323120350,1713682259161,-500.0,0.00023561,2]
[323120351,1713682259171,-1200.37,0.00023561,2]
[323120352,1713682259181,-751.54,0.00023561,2]
[323120353,1713682259190,-500.0,0.00023561,2]
[323120354,1713682259200,-500.0,0.00023561,2]
[323120355,1713682259210,-823.34,0.00023561,2]
[323120356,1713682259219,-500.0,0.00023561,2]
[323120357,1713682259229,-500.0,0.00023561,2]
[323120358,1713682259240,-500.0,0.00023561,2]
[323120359,1713682259250,-500.0,0.00023561,2]
[323120360,1713682259259,-1463.78,0.00023561,2]
[323120361,1713682259269,-980.47,0.00023561,2]
[323120362,1713682259279,-1041.63,0.00023561,2]
[323120363,1713682259289,-1235.19,0.00023561,2]
[323120364,1713682259298,-550.81,0.00023561,2]
[323120365,1713682259307,-1709.09,0.00023561,2]
[323120366,1713682259318,-500.0,0.00023561,2]
[323120367,1713682259330,-2893.04,0.00023561,2]
[323120368,1713682259340,-500.0,0.00023561,2]